bitfinex/quotes_ETHUSD_20240718
["timestamp","ask_amount","ask_price","bid_price","bid_amount"]
[1721334816383,0.842,3413.0,3412.5,3.0]
[1721334816581,0.842,3413.0,3412.6,1.0187325]
[1721334816778,0.842,3413.0,3412.5,3.0]
[1721334817000,3.3391,3413.3,3412.6,5.47705388]
[1721334817184,3.3391,3413.3,3412.7,2.54678388]
[1721334817386,3.3391,3413.3,3412.8,8.47678562]
[1721334817602,3.3391,3413.3,3412.8,5.93009]
[1721334817921,0.842,3413.1,3412.8,5.93009]
[1721334818205,2.4971,3413.3,3412.8,5.93009]
[1721334818770,0.842,3413.2,3412.8,5.93009]
[1721334820103,3.3391,3413.3,3412.8,5.93009]
[1721334821412,3.3391,3413.3,3412.9,1.01863726]
[1721334821569,3.3391,3413.3,3412.8,5.93009]
[1721334821770,3.3391,3413.3,3412.9,1.01863467]
[1721334821984,3.3391,3413.3,3412.8,5.93009]
[1721334822303,3.3391,3413.3,3412.9,1.01863288]
[1721334822505,3.3391,3413.3,3412.8,5.93009]
[1721334822675,0.06149541,3413.0,3412.8,5.93009]
[1721334823368,0.06149541,3412.9,3412.8,5.93009]
[1721334823569,0.06149541,3412.9,3412.8,8.4767063]
[1721334825806,0.06149541,3412.9,3412.8,10.79195345]
[1721334828553,0.06149541,3412.9,3412.8,8.47665345]
[1721334828904,0.06149541,3412.9,3412.8,5.93009]
[1721334829136,0.06149541,3412.9,3412.8,8.47665146]
[1721334831341,0.06149541,3412.9,3412.8,5.54656146]
[1721334831546,0.06149541,3412.9,3412.8,4.01862458]
[1721334831755,0.06149541,3412.9,3412.8,1.01862458]
[1721334831964,0.06149541,3412.9,3412.6,3.0]
[1721334832276,0.06149541,3412.7,3412.6,3.0]
[1721334832421,0.06149541,3412.7,3412.2,0.61331205]
[1721334832624,0.06149541,3412.7,3412.3,2.54687813]
[1721334832880,0.06149541,3412.7,3412.2,0.61331205]
[1721334832881,0.842,3412.6,3412.4,2.54687813]
[1721334833065,0.06149541,3412.7,3412.2,0.61331205]
[1721334833374,0.06149541,3412.4,3412.3,2.54688575]
[1721334833923,0.06149541,3412.4,3412.3,5.54688575]
[1721334835366,0.06149541,3412.4,3412.3,3.0]
[1721334835609,0.06149541,3412.4,3412.3,5.54689425]
[1721334837064,0.06149541,3412.4,3412.3,6.1602063]
[1721334837744,0.06149541,3412.4,3412.3,5.54689425]
[1721334838427,0.06149541,3412.4,3412.3,3.0]
[1721334838626,0.06149541,3412.4,3412.3,2.54685585]
[1721334838925,0.06149541,3412.4,3412.3,5.54685585]
[1721334839383,0.06149541,3412.4,3412.3,6.1601679]
[1721334839933,0.06149541,3412.4,3412.3,6.16016821]
[1721334840652,0.90349541,3412.4,3412.3,2.54685616]
[1721334840851,0.90349541,3412.4,3411.9,0.61331205]
[1721334840852,2.93057,3412.3,3411.9,0.61331205]
[1721334841146,2.93076,3412.1,3411.8,0.61331205]
[1721334841347,2.93076,3412.1,3411.7,8.28996807]
[1721334841348,2.2874,3411.8,3411.7,7.37]
[1721334841584,3.1294,3411.8,3411.5,0.61331205]
[1721334841750,0.90349541,3411.9,3411.6,2.54751698]
[1721334841965,0.90349541,3411.9,3411.4,3.53331205]
[1721334842149,0.90349541,3411.9,3411.4,2.92]
[1721334842349,0.06149541,3411.6,3411.5,5.54759642]
[1721334842875,0.06149541,3411.6,3411.5,1.01903857]
[1721334843088,0.06149541,3411.6,3411.2,6.47479205]
[1721334843310,0.842,3411.9,3411.3,2.54767645]
[1721334843517,0.06149541,3411.4,3411.2,5.86148]
[1721334843721,0.06149541,3411.4,3411.3,1.0190761]
[1721334844235,0.06149541,3411.4,3411.2,5.86148]
[1721334844442,0.06149541,3411.4,3411.3,3.0]
[1721334850812,0.06149541,3411.4,3411.2,2.93]
[1721334851308,0.06149541,3411.3,3411.2,2.93]
[1721334851513,0.90349541,3411.3,3411.2,3.0]
[1721334851817,0.90349541,3411.3,3411.0,3.0]
[1721334852001,0.90349541,3411.3,3410.9,3.0]
[1721334852203,0.90349541,3411.3,3410.7,10.30189]
[1721334852204,0.06149541,3411.0,3410.8,3.0]
[1721334852735,0.06149541,3410.9,3410.8,3.0]
[1721334857413,0.06149541,3410.9,3410.8,5.93186]
[1721334860019,0.06149541,3410.9,3410.8,8.86372]
[1721334860661,0.06149541,3410.9,3410.8,5.93186]
[1721334863663,0.06149541,3410.9,3410.8,3.0]
[1721334863835,2.4692,3410.8,3410.2,9.7144]
[1721334864043,0.842,3410.7,3410.3,2.93228]
[1721334864240,0.06149541,3410.4,3410.3,2.93228]
[1721334865257,0.06149541,3410.4,3410.3,5.93228]
[1721334873627,0.06149541,3410.4,3410.3,3.0]
[1721334873864,0.06149541,3410.4,3410.2,3.0]
[1721334874234,0.842,3410.7,3410.2,3.0]
[1721334874235,0.06149541,3410.3,3410.2,3.0]
[1721334874650,0.06149541,3410.3,3410.2,5.93237]
[1721334874852,12.47,3413.4,3410.4,2.93219]
[1721334874853,2.4203,3411.2,3410.4,2.93219]
[1721334875168,0.842,3411.6,3410.6,0.842]
[1721334875461,0.842,3411.6,3410.9,2.93177]
[1721334875961,0.842,3411.4,3410.9,2.93177]
[1721334878556,0.619345,3411.4,3410.7,6.70581]
[1721334878757,2.3344,3411.3,3410.8,3.0]
[1721334879652,2.3344,3411.3,3410.8,5.93183]
[1721334890388,3.2323,3411.7,3410.9,5.27302]
[1721334890550,2.3903,3411.7,3411.1,2.93155]
[1721334891487,2.3903,3411.7,3411.2,4.01910407]
[1721334891644,2.3903,3411.7,3411.2,3.0]
[1721334893783,3.2323,3411.7,3411.2,3.0]
[1721334893950,4.14171,3411.7,3411.2,3.0]
[1721334894282,4.14171,3411.7,3411.0,3.0]
[1721334896068,4.14171,3411.7,3411.0,5.93165]
[1721334896383,4.14171,3411.7,3411.1,1.01917015]
[1721334896582,4.14171,3411.7,3411.0,5.93165]
[1721334896876,4.14171,3411.7,3411.1,1.01917023]
[1721334897082,4.14171,3411.7,3411.0,5.93165]
[1721334897281,4.14171,3411.7,3411.1,1.01917232]
[1721334897479,4.14171,3411.7,3411.0,5.93165]
[1721334897685,4.14171,3411.7,3411.1,1.01916623]
[1721334897986,4.14171,3411.7,3411.0,5.93165]
[1721334898163,4.14171,3411.7,3411.1,1.01916555]
[1721334898363,4.14171,3411.7,3411.0,5.93165]
[1721334898583,3.2323,3411.7,3411.1,1.01916545]
[1721334898887,3.2323,3411.7,3411.0,5.93165]
[1721334899194,3.2323,3411.7,3411.1,1.01916479]
[1721334899404,3.2323,3411.7,3411.0,5.93165]
[1721334899588,3.2323,3411.7,3411.1,1.01916035]
[1721334899894,3.2323,3411.7,3411.0,5.93165]
[1721334900589,6.16339,3411.7,3411.0,5.93165]
[1721334900887,6.64817163,3411.7,3411.0,5.93165]
[1721334905499,2.3903,3411.7,3411.0,5.93165]
[1721334905884,2.3903,3411.7,3411.1,2.93156]
[1721334906087,2.3566,3412.0,3411.3,0.842]
[1721334906291,5.28715,3412.4,3411.6,2.93114]
[1721334906661,5.28715,3412.4,3411.5,3.77318]
[1721334906861,5.28715,3412.4,3411.6,3.0]
[1721334907164,5.28715,3412.4,3411.6,5.93109]
[1721334907597,2.93058,3412.3,3411.6,3.0]
[1721334907766,2.93058,3412.3,3411.5,3.842]
[1721334907984,3.77258,3412.3,3411.5,6.77323]
[1721334908369,3.77258,3412.3,3411.5,6.77319]
[1721334908897,0.842,3412.3,3411.6,2.93117]
[1721334910695,0.842,3412.3,3411.5,3.842]
[1721334911002,0.842,3412.3,3411.6,3.0]
[1721334911213,2.3566,3412.4,3411.8,2.93098]
[1721334911919,2.3566,3412.4,3411.9,2.93091]
[1721334914779,2.309,3412.7,3412.2,2.93057]
[1721334915387,2.309,3412.7,3412.3,2.93056]
[1721334915918,2.309,3412.7,3412.1,2.93071]
[1721334917705,2.309,3412.7,3411.6,0.61400172]
[1721334917706,2.4166,3413.0,3412.5,0.842]
[1721334917886,2.4166,3413.0,3412.3,0.842]
[1721334918081,2.4166,3413.0,3412.5,2.9304]
[1721334924089,2.4166,3413.0,3412.5,2.93033]
[1721334924289,2.4166,3413.0,3412.6,2.93031]
[1721334925089,2.4166,3413.0,3412.7,2.93018]
[1721334925323,2.4166,3413.0,3412.8,2.93009]
[1721334926491,3.2586,3413.3,3412.8,2.93009]
[1721334928022,2.4166,3413.3,3412.8,2.93009]
[1721334928901,0.842,3413.2,3412.8,2.93009]
[1721334929102,2.4166,3413.3,3412.8,2.93009]
[1721334929894,0.842,3413.2,3412.8,2.93009]
[1721334930091,2.4166,3413.3,3412.8,2.93009]
[1721334930689,2.4166,3413.3,3412.9,2.93001]
[1721334930894,3.2586,3413.3,3412.9,2.93001]
[1721334931220,2.4166,3413.3,3412.9,2.93001]
[1721334931923,0.842,3413.2,3412.9,2.93001]
[1721334932134,2.4166,3413.3,3412.9,2.93001]
[1721334933312,2.4166,3413.3,3412.7,2.93018]
[1721334933313,3.2586,3413.3,3412.7,2.93016]
[1721334933697,0.07778111,3413.2,3412.8,2.93009]
[1721334934122,3.2586,3413.3,3412.8,2.93009]
[1721334934309,0.07771211,3413.1,3412.8,2.93009]
[1721334934513,0.07782239,3413.2,3412.8,2.93009]
[1721334934827,3.2586,3413.3,3412.8,2.93009]
[1721334935009,0.07790517,3413.2,3412.8,2.93009]
[1721334935344,2.4166,3413.3,3412.8,2.93009]
[1721334935551,0.07784471,3413.1,3412.8,2.93009]
[1721334935705,0.07778111,3413.2,3412.8,2.93009]
[1721334935906,0.07780489,3413.0,3412.6,2.9303]
[1721334936109,2.4166,3413.3,3412.7,2.93018]
[1721334936755,0.07789914,3413.2,3412.8,2.93014]
[1721334937194,2.4166,3413.3,3412.8,2.93014]
[1721334937396,0.07782161,3413.1,3412.8,2.93014]
[1721334937538,0.07798526,3413.2,3412.8,2.93014]
[1721334937892,2.4166,3413.3,3412.8,2.93014]
[1721334938086,0.07782161,3413.1,3412.8,2.93014]
[1721334938283,0.07796462,3413.2,3412.8,2.93014]
[1721334938427,0.07753131,3413.0,3412.8,2.93014]
[1721334938630,2.4166,3413.3,3412.8,2.93014]
[1721334938827,0.07719415,3413.2,3412.8,2.93014]
[1721334939078,2.4166,3413.3,3412.8,2.93014]
[1721334939231,0.07713367,3413.1,3412.8,2.93014]
[1721334939429,2.4166,3413.3,3412.8,2.93014]
[1721334939674,0.07719415,3413.2,3412.8,2.93014]
[1721334940040,2.4166,3413.3,3412.8,2.93014]
[1721334940380,0.07761465,3413.2,3412.8,2.93014]
[1721334940772,2.4166,3413.3,3412.8,2.93014]
[1721334940977,0.07766128,3413.1,3412.8,2.93014]
[1721334941147,0.07757703,3413.2,3412.8,2.93014]
[1721334941470,2.4166,3413.3,3412.8,2.93014]
[1721334941679,0.07749592,3413.1,3412.8,2.93014]
[1721334941848,0.07770088,3413.2,3412.8,2.93014]
[1721334942045,2.4166,3413.3,3412.8,2.93014]
[1721334942241,0.07768024,3413.2,3412.8,2.93014]
[1721334942441,0.842,3413.5,3412.6,3.77223]
[1721334942442,2.3955,3413.5,3412.7,2.409]
[1721334942672,0.30634532,3413.6,3413.0,5.85978]
[1721334942845,0.30634532,3413.6,3413.1,2.92988]
[1721334943973,0.0778358,3413.5,3413.1,2.92988]
[1721334944381,0.0778358,3413.5,3412.8,2.93009]
[1721334944680,0.0778358,3413.5,3413.0,2.92991]
[1721334944876,0.9198358,3413.5,3413.0,2.9299]
[1721334945044,0.0778358,3413.5,3413.0,2.9299]
[1721334945906,0.9198358,3413.5,3413.0,2.9299]
[1721334946035,0.0778358,3413.5,3413.0,2.9299]
[1721334946387,0.0778358,3413.5,3413.0,3.7719]
[1721334946535,0.0778358,3413.5,3412.8,0.842]
[1721334946733,0.0778358,3413.5,3413.0,2.9299]
[1721334947746,2.435,3413.4,3412.8,2.9301]
[1721334947943,2.435,3413.4,3413.0,2.92996]
[1721334948263,0.07776273,3413.3,3413.0,2.92996]
[1721334948665,2.74134532,3413.6,3413.0,2.92996]
[1721334948835,0.07768899,3413.2,3413.0,2.92996]
[1721334949032,0.30634532,3413.6,3413.0,2.92996]
[1721334949257,0.07787038,3413.5,3413.0,2.92996]
[1721334950473,0.07787038,3413.5,3413.0,5.85986]
[1721334951045,0.07787038,3413.5,3413.0,2.9299]
[1721334951369,0.07787038,3413.5,3413.1,5.24017]
[1721334952839,0.07787038,3413.5,3413.1,5.24012]
[1721334953044,0.07787038,3413.5,3413.3,2.92971]
[1721334953501,0.07787038,3413.5,3413.1,2.92981]
[1721334953796,0.07787038,3413.5,3413.1,5.85963]
[1721334953983,0.07787038,3413.5,3413.2,2.92978]
[1721334955372,0.07787038,3413.5,3413.0,2.92989]
[1721334955772,0.07787038,3413.5,3413.1,2.92988]
[1721334957176,0.07787038,3413.5,3413.1,5.8597]
[1721334957588,0.07787038,3413.5,3413.1,2.92982]
[1721334957789,0.07787038,3413.5,3413.1,5.85965]
[1721334958879,0.07787038,3413.5,3413.2,2.92979]
[1721334960375,0.07787038,3413.5,3413.3,2.92969]
[1721334961006,0.07787038,3413.5,3413.3,3.77169]
[1721334961523,0.07787038,3413.5,3413.3,2.92969]
[1721334962104,0.07787038,3413.5,3413.2,2.92979]
[1721334962312,0.07787038,3413.5,3413.4,9.11956]
[1721334962632,0.34623795,3414.0,3413.7,2.92931]
[1721334962788,0.34623795,3414.0,3413.4,8.80632455]
[1721334962789,0.07781033,3413.9,3413.4,6.18989]
[1721334962981,2.4673,3413.9,3413.5,3.0]
[1721334963217,2.84749047,3413.9,3413.3,5.92965]
[1721334963515,0.07772112,3413.8,3413.3,3.0]
[1721334964521,0.07772112,3413.8,3413.4,2.92962]
[1721334964714,0.07772112,3413.8,3413.5,3.0]
[1721334967796,0.07772112,3413.8,3413.3,3.0]
[1721334967994,0.07772112,3413.8,3413.4,2.92961]
[1721334968284,0.07772112,3413.8,3413.5,3.0]
[1721334975157,0.07772112,3413.8,3413.5,5.92953]
[1721334975456,0.07772112,3413.8,3413.5,3.0]
[1721334975751,0.07772112,3413.8,3413.6,2.92943]
[1721334976625,0.07772112,3413.8,3413.7,2.92937]
[1721334976852,0.34623795,3414.0,3413.8,2.92926]
[1721334977046,0.07768198,3413.9,3413.8,2.92926]
[1721334981150,0.6525132,3414.0,3413.8,2.92926]
[1721334981558,0.07514493,3413.9,3413.8,2.92926]
[1721334981959,0.6525132,3414.0,3413.8,2.92926]
[1721334982279,0.0751309,3413.9,3413.8,3.77126]
[1721334982561,0.6525132,3414.0,3413.8,3.77126]
[1721334982980,0.07511026,3413.9,3413.8,2.92926]
[1721334983139,0.07511026,3413.9,3413.8,3.77126]
[1721334983332,0.6525132,3414.0,3413.8,6.70048]
[1721334983742,0.07509403,3413.9,3413.8,6.22822]
[1721334984038,0.6525132,3414.0,3413.9,5.8584]
[1721334984039,0.34623795,3414.0,3413.9,5.8584]
[1721334984233,0.34623795,3414.0,3413.9,12.01806457]
[1721334984545,0.1463667,3414.2,3414.1,5.85804]
[1721334984753,0.1463667,3414.2,3414.1,9.24570285]
[1721334984941,0.1463667,3414.2,3414.1,8.40370285]
[1721334985457,0.1463667,3414.2,3414.1,6.87630344]
[1721334986091,0.1463667,3414.2,3414.1,7.7181965]
[1721334986899,0.1463667,3414.2,3414.1,6.8761965]
[1721334987105,0.1463667,3414.2,3414.1,7.7181965]
[1721334987922,0.1463667,3414.2,3414.1,6.8761965]
[1721334988204,0.1463667,3414.2,3414.1,7.71818933]
[1721334988565,0.1463667,3414.2,3414.1,6.70004]
[1721334988765,0.1463667,3414.2,3414.1,3.77102]
[1721334988966,0.1463667,3414.2,3414.1,2.92902]
[1721334989318,2.92904,3414.1,3413.8,0.61308578]
[1721334989608,3.2493667,3414.2,3413.2,13.22977]
[1721334989609,2.3226,3413.9,3413.2,13.22977]
[1721334990011,0.07249996,3413.8,3413.2,13.22977]
[1721334990176,0.07249996,3413.8,3413.3,0.842]
[1721334990531,0.07249996,3413.8,3413.2,10.3]
[1721334990823,0.07249996,3413.8,3413.3,4.01843066]
[1721334991030,2.3226,3413.9,3413.3,3.0]
[1721334991249,2.3226,3413.9,3413.3,3.842]
[1721334992802,2.3226,3413.9,3413.3,3.0]
[1721334992803,2.92929,3413.8,3413.3,3.0]
[1721334993001,0.9023,3413.7,3413.3,3.0]
[1721334993226,2.431,3413.6,3413.2,7.37]
[1721334993646,0.07216561,3413.5,3413.2,7.37]
[1721334995223,0.07216561,3413.5,3412.9,3.77205]
[1721334995427,0.07216561,3413.5,3413.0,3.0]
[1721334996120,0.07216561,3413.5,3412.8,3.0]
[1721334998152,3.00172561,3413.5,3412.8,3.0]
[1721334998505,3.9280284,3413.5,3412.8,3.0]
[1721334998710,4.7700284,3413.5,3412.8,3.0]
[1721334998912,2.9298,3413.2,3412.7,7.37]
[1721334999113,2.4971,3413.1,3412.7,7.37]
[1721334999424,5.42699,3413.1,3412.7,7.37]
[1721335000045,0.07178532,3413.0,3412.7,7.37]
[1721335003934,2.93023,3412.7,3412.0,8.212]
[1721335004267,5.33988,3412.6,3412.0,7.37]
[1721335004432,2.93041,3412.5,3412.0,7.37]
[1721335004618,3.00187157,3412.5,3412.0,7.37]
[1721335005418,3.00187157,3412.5,3412.1,3.0]
[1721335005660,0.07146157,3412.5,3412.1,3.0]
[1721335006852,0.07141736,3412.4,3412.1,3.0]
[1721335007057,2.4095,3412.6,3412.1,3.0]
[1721335007382,0.07147785,3412.5,3412.0,3.842]
[1721335009348,0.07147785,3412.5,3412.0,6.77281]
[1721335009729,2.4095,3412.6,3412.0,6.77281]
[1721335013931,2.4095,3412.6,3412.0,5.93081]
[1721335014270,5.33987,3412.6,3412.0,3.0]
[1721335014468,2.93054,3412.4,3411.9,3.0]
[1721335014678,2.2692,3412.2,3411.7,3.0]
[1721335014830,2.2692,3412.2,3411.6,7.37]
[1721335014831,2.93087,3412.0,3411.6,7.37]
[1721335015034,3.77312,3411.7,3411.2,7.37]
[1721335015236,3.77332,3411.5,3411.2,7.37]
[1721335015430,0.06975869,3411.4,3411.2,7.37]
[1721335015655,2.93112,3411.7,3411.2,7.37]
[1721335015869,0.0705766,3411.6,3411.2,7.37]
[1721335017178,0.0705766,3411.6,3411.2,10.30145]
[1721335017555,2.2692,3411.9,3411.2,10.30145]
[1721335017760,0.07019333,3411.5,3411.2,10.30145]
[1721335018078,0.07013279,3411.4,3411.2,10.30145]
[1721335018298,2.2692,3411.9,3411.2,10.30145]
[1721335018456,0.07058576,3411.8,3411.2,10.30145]
[1721335018657,0.07058576,3411.8,3411.2,11.14345]
[1721335018855,0.07058576,3411.8,3411.2,3.77345]
[1721335019182,0.07058576,3411.8,3411.5,2.93125]
[1721335019483,2.4927,3412.2,3411.2,0.842]
[1721335019484,2.93084,3412.0,3411.2,0.842]
[1721335019789,0.07029256,3411.9,3411.2,3.7735]
[1721335020493,0.07029256,3411.9,3411.2,0.842]
[1721335020650,5.19563,3411.8,3411.1,3.0]
[1721335020850,3.00131277,3411.7,3411.1,3.0]
[1721335021150,3.00131277,3411.7,3410.9,7.37]
[1721335021151,3.00131277,3411.7,3411.0,3.0]
[1721335021764,3.00131277,3411.7,3411.0,5.93168]
[1721335021765,0.07021277,3411.7,3411.0,5.93168]
[1721335022366,0.07021277,3411.7,3411.0,3.0]
[1721335022778,3.00131277,3411.7,3411.0,3.0]
[1721335023381,2.93129,3411.5,3411.0,3.0]
[1721335023692,0.07022281,3411.4,3411.0,3.0]
[1721335023855,2.93123,3411.6,3411.0,3.0]
[1721335024054,0.07028335,3411.5,3411.0,3.0]
[1721335024992,3.00154335,3411.5,3411.0,3.0]
[1721335027158,2.93126,3411.5,3411.0,3.0]
[1721335027990,2.93113,3411.7,3411.0,3.0]
[1721335028192,3.77286,3412.0,3411.0,3.0]
[1721335028193,5.26623,3412.0,3411.1,3.77353]
[1721335028559,0.07045327,3411.9,3411.1,3.77353]
[1721335028871,2.93101,3411.8,3411.0,40.405]
[1721335029053,2.93101,3411.8,3411.0,43.33664]
[1721335029684,2.93101,3411.8,3411.1,2.9316]
[1721335030000,0.07030125,3411.7,3411.1,2.9316]
[1721335030205,2.93118,3411.6,3411.0,3.0]
[1721335030499,3.834934,3411.8,3411.0,3.0]
[1721335030693,3.0014423,3411.7,3411.0,3.0]
[1721335030872,2.93113,3411.7,3411.0,3.0]
[1721335031312,2.93097,3411.9,3411.1,0.842]
[1721335031512,0.07034041,3411.8,3411.2,2.93147]
[1721335031836,2.3354,3412.0,3411.3,0.842]
[1721335032038,2.3354,3412.0,3411.3,3.77342]
[1721335032238,0.07035378,3411.9,3411.8,2.931]
[1721335032530,0.07035378,3411.9,3411.6,2.93117]
[1721335032531,0.06827255,3411.9,3411.6,2.93117]
[1721335032697,2.93041,3412.5,3411.6,2.93117]
[1721335032906,2.99908511,3412.4,3411.6,2.93117]
[1721335033228,2.99908511,3412.4,3411.7,0.842]
[1721335033917,2.99908511,3412.4,3411.6,2.93117]
[1721335034314,0.06857511,3412.4,3411.7,0.842]
[1721335034662,5.26572,3412.6,3411.8,2.93097]
[1721335034949,6.10772,3412.6,3411.7,0.842]
[1721335035152,0.06835564,3412.5,3411.7,0.842]
[1721335035305,0.06835564,3412.5,3411.9,0.842]
[1721335035505,0.91035564,3412.5,3411.6,2.93116]
[1721335035829,0.91035564,3412.5,3411.8,2.93095]
[1721335036028,0.06835564,3412.5,3411.8,2.93095]
[1721335037012,0.06835564,3412.5,3411.8,3.77295]
[1721335037347,2.3354,3412.6,3411.8,3.77295]
[1721335038049,2.3354,3412.6,3411.8,6.70388]
[1721335038549,2.3354,3412.6,3411.8,3.77293]
[1721335038936,0.06751749,3412.5,3411.8,2.93093]
[1721335039141,0.06751749,3412.5,3411.9,2.9309]
[1721335039343,2.3354,3412.6,3411.9,2.9309]
[1721335040153,2.3354,3412.6,3412.0,2.9308]
[1721335041344,0.06723754,3412.5,3412.0,2.9308]
[1721335041542,0.06723754,3412.5,3411.8,2.93092]
[1721335041847,0.06723754,3412.5,3411.9,3.77291]
[1721335042052,0.06723754,3412.5,3412.0,2.93082]
[1721335046722,0.06723754,3412.5,3412.0,2.93076]
[1721335046919,5.35267,3412.8,3412.0,2.93076]
[1721335047157,0.06662481,3412.7,3412.0,2.93076]
[1721335047757,5.35267,3412.8,3412.0,2.93076]
[1721335047965,5.35267,3412.8,3412.0,5.86152]
[1721335048166,0.06662481,3412.7,3412.0,5.86152]
[1721335048526,5.35267,3412.8,3412.0,5.86152]
[1721335048862,0.06662481,3412.7,3412.0,5.86152]
[1721335049230,5.35267,3412.8,3412.0,5.86152]
[1721335049660,0.06662481,3412.7,3412.0,5.86152]
[1721335050163,5.35267,3412.8,3412.0,5.86152]
[1721335050648,0.06662481,3412.7,3412.0,5.86152]
[1721335050956,5.35267,3412.8,3412.1,2.93073]
[1721335051347,0.06662481,3412.7,3412.1,2.93073]
[1721335051755,0.06662481,3412.7,3412.1,3.77273]
[1721335053663,0.06662481,3412.7,3412.2,2.93065]
[1721335056379,0.06662481,3412.7,3412.5,0.842]
[1721335056542,0.06662481,3412.7,3412.6,2.93031]
[1721335056739,2.4148,3413.1,3412.6,2.93031]
[1721335056945,0.06529458,3413.0,3412.6,2.93031]
[1721335060875,2.4148,3413.3,3412.6,2.93031]
[1721335061189,2.4148,3413.3,3412.7,0.842]
[1721335061488,0.06545232,3413.2,3412.8,2.93012]
[1721335061865,2.4148,3413.3,3412.8,2.93012]
[1721335062087,0.06539185,3413.1,3412.8,2.93012]
[1721335062288,0.06545232,3413.2,3412.8,2.93012]
[1721335062446,0.06533506,3413.0,3412.6,2.93024]
[1721335062646,2.4148,3413.3,3412.6,2.93024]
[1721335062887,0.06533725,3412.9,3412.6,2.93024]
[1721335063086,2.4148,3413.3,3412.6,2.93024]
[1721335063271,0.06525613,3412.8,3412.6,2.93024]
[1721335063464,2.4148,3413.3,3412.6,2.93024]
[1721335063847,0.06549875,3413.2,3412.6,2.93024]
[1721335069605,0.06549875,3413.2,3412.7,2.93022]
[1721335070066,0.06549875,3413.2,3412.7,3.77222]
[1721335070993,0.06549875,3413.2,3412.7,2.93022]
[1721335071199,0.06549875,3413.2,3412.7,3.77222]
[1721335071866,0.06549875,3413.2,3412.7,2.93022]
[1721335072067,0.06549875,3413.2,3412.7,3.77222]
[1721335072963,0.06549875,3413.2,3412.7,2.93022]
[1721335073165,0.06549875,3413.2,3412.7,3.77222]
[1721335073970,0.06549875,3413.2,3412.7,2.93022]
[1721335074167,0.06549875,3413.2,3412.7,3.77222]
[1721335074903,0.06549875,3413.2,3412.7,2.93022]
[1721335075070,0.06549875,3413.2,3412.7,3.77222]
[1721335075881,0.06549875,3413.2,3412.7,2.93022]
[1721335076199,0.06549875,3413.2,3412.7,3.77222]
[1721335076423,0.06549875,3413.2,3412.6,2.9303]
[1721335079719,2.45871229,3413.1,3412.4,2.93045]
[1721335079916,2.3998,3413.1,3412.5,1.01866499]
[1721335080140,0.06311887,3413.0,3412.4,2.93045]
[1721335080824,2.3998,3412.9,3412.2,3.54369578]
[1721335081034,2.46286279,3412.9,3412.3,4.01872209]
[1721335081320,2.46286279,3412.9,3412.3,3.842]
[1721335082956,2.3998,3412.9,3412.3,6.77256]
[1721335083659,2.3998,3412.9,3412.5,0.842]
[1721335083864,2.3998,3412.9,3412.6,1.01865914]
[1721335084079,2.3998,3412.9,3412.5,0.842]
[1721335084221,2.2672,3413.4,3412.7,0.842]
[1721335084421,5.83135153,3413.4,3412.7,3.77218]
[1721335084824,5.83135153,3413.4,3412.7,2.93018]
[1721335085023,5.19683,3413.4,3412.8,0.842]
[1721335085974,5.19683,3413.4,3412.7,2.93018]
[1721335086268,0.06329657,3413.3,3412.7,2.93018]
[1721335087937,0.06329657,3413.3,3412.6,0.842]
[1721335088123,5.19683,3413.4,3412.6,3.7723]
[1721335088628,0.06329657,3413.3,3412.6,3.7723]
[1721335089624,2.2882,3413.2,3412.6,0.842]
[1721335089856,5.83032266,3413.2,3412.5,2.93032]
[1721335090029,0.06303703,3413.1,3412.6,1.01866392]
[1721335090225,2.3607,3413.0,3412.4,1.45508578]
[1721335090430,2.3607,3413.0,3412.5,2.5466844]
[1721335090628,2.3607,3413.0,3412.6,1.01867376]
[1721335090629,2.3607,3412.9,3412.6,1.01867376]
[1721335090855,2.3607,3412.9,3412.4,3.0]
[1721335093032,2.3607,3412.9,3412.4,3.842]
[1721335093861,0.06064641,3412.8,3412.4,3.0]
[1721335094054,0.06064641,3412.8,3412.4,6.77246]
[1721335094477,0.45911245,3413.0,3412.6,0.842]
[1721335094773,2.3165,3413.2,3412.8,0.842]
[1721335094944,2.3165,3413.2,3412.6,0.61308578]
[1721335095143,2.3165,3413.2,3412.8,0.842]
[1721335095847,2.3165,3413.2,3412.7,2.93022]
[1721335096178,2.3165,3413.2,3412.8,0.842]
[1721335096884,2.3165,3413.2,3412.7,2.93017]
[1721335097061,2.3165,3413.2,3412.8,1.86063201]
[1721335097264,2.3165,3413.2,3412.8,0.842]
[1721335097847,2.3165,3413.2,3412.7,2.93017]
[1721335098047,2.3165,3413.2,3412.8,1.01863279]
[1721335098347,2.3165,3413.2,3412.7,3.77217]
[1721335098687,2.3165,3413.2,3412.8,2.54656649]
[1721335099003,2.3165,3413.2,3412.7,2.93017]
[1721335099159,2.3165,3413.2,3412.8,1.0186296]
[1721335099357,2.3165,3413.2,3412.7,0.842]
[1721335099576,2.3165,3413.2,3412.8,1.01864042]
[1721335099891,2.3165,3413.2,3412.7,2.93022]
[1721335100186,2.3165,3413.2,3412.8,1.0186357]
[1721335100402,2.3165,3413.2,3412.7,3.77222]
[1721335100602,2.3165,3413.2,3412.8,2.54658898]
[1721335100809,2.3165,3413.2,3412.7,3.77222]
[1721335100963,2.3165,3413.2,3412.8,2.54657913]
[1721335101304,2.3165,3413.2,3412.7,2.93022]
[1721335101305,2.3165,3413.2,3412.7,3.77222]
[1721335101518,2.3165,3413.2,3412.8,2.54658255]
[1721335101666,2.3165,3413.2,3412.9,1.01863302]
[1721335101866,2.3165,3413.2,3412.7,3.54330578]
[1721335102079,2.3165,3413.2,3412.8,2.54657445]
[1721335102277,2.3165,3413.2,3412.9,1.01862978]
[1721335102500,2.3165,3413.2,3412.8,2.93009]
[1721335102681,2.3165,3413.2,3412.9,1.01862429]